Cogmind - Beta 12 @@@ ROGUE MODE // 2023.03.05 @ 07:46:21 Player: youngster Result: Destroyed by 8R-AWN with 8R-AWN's Boregun Performance ------------- Evolutions (1) 500 Regions Visited (5) 1000 Robots Destroyed (93) 465 Value Destroyed (1969) 1969 Prototype IDs (15) 300 Alien Tech Used (0) 0 Bonus (-111) -111 TOTAL SCORE: 4123 Bonus ------- High Alert Combat Kills 55 Follower Combat Kills 7 Friendly Fire -173 Cogmind --------- Core Integrity 0/400 Matter 137/500 Energy 96/100 System Corruption 0% Temperature Cool (0) Movement Core (500) Ox9 Location -9/Exiles Parts ------- > --- POWER (1) -------- (None) > --- PROPULSION (3) --- Armored Wheel > --- UTILITY (3) ------ Large Storage Unit High-capacity Matter Pod Improved Targeting Computer > --- WEAPON (2) ------- Assault Rifle Improved Assault Rifle > --- INVENTORY (15) --- High-capacity Matter Pod (200) Visual Processing Unit Seismic Detector Battle Cannon Rocket Launcher Improved Datajack Flail Peak State ------------ > --- POWER ------------ Deuterium Engine > --- PROPULSION ------- Light Treads Light Treads Armored Wheel > --- UTILITY ---------- Huge Storage Unit Improved Targeting Computer Medium Armor Plating > --- WEAPON ----------- Autogun Improved Datajack > --- INVENTORY -------- Light Treads Light Treads Armored Wheel Combat Airjet Large Storage Unit High-capacity Matter Pod Seismic Detector Light Armor Plating Medium Armor Plating Trap Extractor EM Pulse Cannon Assault Rifle Heavy Assault Rifle Heavy Assault Rifle Heavy Assault Rifle Heavy Assault Rifle Improved Assault Rifle Improved Light Cannon Rocket Launcher Rocket Launcher Flail [Rating: 21] Favorites ----------- Power Improved Ion Engine Engine Improved Ion Engine Power Core Nuclear Core Propulsion Light Treads Treads Light Treads Wheel Armored Wheel Utility Huge Storage Unit Device Seismic Detector Storage Huge Storage Unit Processor Improved Targeting Computer Protection Medium Armor Plating Weapon Beam Rifle Energy Gun Beam Rifle Ballistic Gun Assault Rifle Ballistic Cannon Light Cannon Launcher Rocket Launcher Impact Weapon Flail Special Melee Weapon Improved Datajack Build | -11 -10 -10 -9 -9 -9 ------- Run | Jun Mat Min Mat Min Exi Slots Evolved 2 | . . . 2 . . Power . | . . . . . . Propulsion 1 | . . . 1 . . Utility 1 | . . . 1 . . Weapon . | . . . . . . Parts Attached 113 | 7 16 14 42 16 18 Power 10 | 1 2 . 6 1 . Engine 9 | 1 2 . 5 1 . Core 1 | . . . 1 . . Reactor . | . . . . . . Propulsion 19 | 2 1 2 9 2 3 Treads 14 | 2 1 1 6 2 2 Leg . | . . . . . . Wheel 5 | . . 1 3 . 1 Hover . | . . . . . . Flight . | . . . . . . Utility 28 | 2 3 6 7 5 5 Device 9 | 1 . 3 1 3 1 Storage 5 | 1 1 1 . . 2 Processor 1 | . . . 1 . . Hackware . | . . . . . . Protection 13 | . 2 2 5 2 2 Artifact . | . . . . . . Weapon 56 | 2 10 6 20 8 10 Energy Gun 7 | . 1 1 5 . . Energy Cannon . | . . . . . . Ballistic Gun 22 | 2 3 . 6 3 8 Ballistic Cannon 10 | . 3 3 3 1 . Launcher 13 | . 2 2 6 2 1 Special Weapon . | . . . . . . Impact Weapon 2 | . 1 . . . 1 Slashing Weapon . | . . . . . . Piercing Weapon . | . . . . . . Special Melee Weapon 2 | . . . . 2 . Unidentified Prototypes 1 | . . . 1 . . Parts Lost 25 | . 1 1 7 5 11 Power 4 | . . . 2 1 1 Propulsion 8 | . . 1 1 2 4 Utility 7 | . 1 . 3 1 2 Weapon 6 | . . . 1 1 4 Highest Loss Streak 11 | . 1 1 4 5 11 To Critical Strikes 5 | . . . . . 5 Average Slot Usage (%) 97 | . 99 100 95 99 95 Engine 11 | . 14 14 10 10 9 Treads 22 | . 27 23 21 21 20 Wheel 7 | . . 4 10 11 9 Device 8 | . 6 11 6 10 7 Storage 12 | . 14 14 11 11 12 Processor 4 | . . . 3 11 11 Protection 5 | . 7 2 8 . 1 Energy Gun 5 | . . 6 10 . . Ballistic Gun 12 | . 15 14 10 11 13 Ballistic Cannon 3 | . 10 6 . . . Launcher 2 | . . 1 . 10 . Naked Turns . | . . . . . . Heaviest Build 104 | 11 34 96 104 103 95 Greatest Support 60 | 40 40 40 16 12 60 Greatest Overweight (x) 8 | . 1 5 8 8 7 Average Overweight (x) 4 | . . 1 7 7 6 Largest Inventory Capacity 25 | 8 15 25 25 25 25 Average Capacity 21 | 7 12 18 25 25 22 Most Carried 25 | 5 15 16 25 25 25 Average Carried 19 | 3 11 14 24 22 20 Final Capacity 25 | 8 15 25 25 25 15 Final Carried 25 | 5 14 16 25 23 7 Class Distribution -------------------- 100% | Mutant Dominant Class ---------------- Mutant | -10/Materials Mutant | -10/Mines Mutant | -9/Materials Mutant | -9/Mines Mutant | -9/Exiles Resources | -11 -10 -10 -9 -9 -9 ----------- Run | Jun Mat Min Mat Min Exi Matter Collected 2433 | 292 534 214 916 405 72 Remotely . | . . . . . . Salvage Created 2637 | 147 620 176 1501 179 14 Parts 180 | 11 53 13 93 10 . Haulers Intercepted 8 | . 2 . 6 . . Recyclers Shooed 2 | . . 1 1 . . Parts Field Recycled . | . . . . . . Retrieved Matter . | . . . . . . Parts Self-Destructed . | . . . . . . Prevented . | . . . . . . Kills | -11 -10 -10 -9 -9 -9 ------- Run | Jun Mat Min Mat Min Exi Combat Hostiles Destroyed 86 | . 22 7 29 25 3 Guns 24 | . 8 . 13 . 3 Cannons 19 | . 13 1 3 2 . AOE 42 | . 1 6 12 23 . Classes Destroyed 13 | 2 4 1 4 2 . Worker 2 | . . 1 1 . . Builder 1 | . . . 1 . . Tunneler 6 | 3 . 1 1 1 . Hauler 8 | . 2 . 6 . . Recycler 5 | 1 . . 3 1 . Operator 1 | . . . 1 . . Watcher 6 | . 2 . 4 . . Swarmer 24 | . 9 2 10 3 . Grunt 26 | . 13 5 8 . . Brawler 1 | . . . 1 . . Sentry 10 | . . . 10 . . Demolisher 2 | . . . . 2 . Assembled 23 | . . . . 20 3 Thug 1 | . . 1 . . . Best Kill Streak 24 | 4 3 3 8 24 2 Combat Bots Only 24 | . 3 3 5 24 2 Max Kills in Single Turn 5 | 1 2 3 4 5 1 Gunslinging 1 | . 1 . . . . Exploded 5 | . 1 2 4 5 . Melee . | . . . . . . Uniques/NPCs Destroyed . | . . . . . . Combat | -11 -10 -10 -9 -9 -9 -------- Run | Jun Mat Min Mat Min Exi Damage Taken 4243 | . 740 128 1018 1000 1357 Core 520 | . 103 14 110 28 265 Absorbed by Shields . | . . . . . . Redirected to Shielding 66 | . 56 10 . . . Regen/Repaired (Parts) 137 | . 137 . . . . Core Remaining (%) 76 | 100 . 53 . . . Volleys Fired 242 | 11 73 12 76 26 44 Largest 2 | 2 2 2 2 2 2 Hottest 112 | 40 60 58 112 62 46 Shots Fired 447 | 22 145 14 141 38 87 Gun 343 | 22 91 2 123 19 86 Cannon 73 | . 53 2 7 11 . Launcher 31 | . 1 10 11 8 1 Special . | . . . . . . Kinetic 326 | 22 140 4 44 30 86 Thermal 86 | . . . 86 . . Explosive 31 | . 1 10 11 8 1 Electromagnetic 4 | . 4 . . . . Robot Hit Streak 16 | 5 11 5 16 8 16 Robot Miss Streak 5 | 2 5 1 3 2 2 Penetration Max . | . . . . . . Secondary Targets 3 | . 1 . . . 2 Max Gunslinging Chain 1 | . 1 . . . 1 Shots Hit Robots 298 | 13 84 5 93 25 78 Core Hits 188 | 7 43 16 63 45 14 Critical Kills 1 | . . . . . 1 Critical Parts Destroyed . | . . . . . . Critical Strikes 14 | . 1 . 12 . 1 Burn 11 | . . . 11 . . Destroy 1 | . . . . . 1 Blast 2 | . 1 . 1 . . Melee Attacks 5 | . 1 . . . 4 Impact 2 | . 1 . . . 1 Slashing . | . . . . . . Piercing . | . . . . . . Sneak Attacks 3 | . . . . . 3 Combat Hostiles . | . . . . . . Follow-up Attacks . | . . . . . . Damage Inflicted 7444 | 115 1166 664 2675 1716 1108 Guns 3138 | 115 475 . 1237 222 1089 Cannons 927 | . 647 15 105 160 . Explosions 3294 | . 38 619 1303 1334 . Melee . | . . . . . . Ramming 85 | . 6 30 30 . 19 Kinetic 3139 | 115 1110 15 428 382 1089 Thermal 914 | . . . 914 . . Explosive 3294 | . 38 619 1303 1334 . Electromagnetic 12 | . 12 . . . . Impact . | . . . . . . Slashing . | . . . . . . Piercing . | . . . . . . Highest Corruption . | . . . . . . Average Corruption . | . . . . . . Corruption Purged . | . . . . . . Corruption Blocked . | . . . . . . Overload Shots . | . . . . . . Overflow Damage 130 | . 12 . 57 61 . Projectiles 28 | . 12 . . 16 . Explosions 102 | . . . 57 45 . Melee . | . . . . . . Knockbacks 16 | . 13 . . 3 . Impact . | . . . . . . Kinetic 15 | . 12 . . 3 . Secondary 1 | . 1 . . . . Self-Inflicted Damage 305 | . 32 24 94 155 . Shots 11 | . 1 2 3 5 . Rammed 16 | . 1 7 1 . 7 Targets Rammed 18 | . 1 9 1 . 7 Kicked . | . . . . . . Crushed 2 | . . 2 . . . Highest Temperature 285 | . 78 12 285 63 4 Average Temperature 52 | . 23 5 74 17 3 Received Heat Transfer 701 | . 240 63 378 20 . Effects 1 | . . . 1 . . Energy Bleed 1 | . . . 1 . . Siege Activations . | . . . . . . Robots Corrupted . | . . . . . . Combat Hostiles . | . . . . . . Parts Fried . | . . . . . . Impact Corruptions . | . . . . . . Robots Melted 1 | . . . 1 . . Combat Hostiles 1 | . . . 1 . . Parts Melted 14 | . . . 14 . . Heat Transferred 3071 | . . . 3071 . . Parts Sabotaged . | . . . . . . Parts Stolen . | . . . . . . Parts Stripped . | . . . . . . Power Chain Reactions . | . . . . . . Missiles Intercepted . | . . . . . . Alert | -11 -10 -10 -9 -9 -9 ------- Run | Jun Mat Min Mat Min Exi Peak Influence 569 | 20 358 280 569 175 . Initial 106 | . 13 106 21 63 . Average 167 | 5 243 159 196 42 . Maximum Alert Level 2 | . 1 1 2 . . Low Security (%) 63 | 100 27 65 62 100 . Level 1 32 | . 72 34 29 . . Level 2 3 | . . . 7 . . Level 3 . | . . . . . . Level 4 . | . . . . . . Level 5 . | . . . . . . High Security . | . . . . . . Max Security . | . . . . . . Squads Dispatched 7 | . 6 . 1 . . Investigation 4 | . 3 . 1 . . Extermination . | . . . . . . Reinforcement 3 | . 3 . . . . Assault . | . . . . . . Garrison . | . . . . . . Intercept . | . . . . . . Searches Triggered . | . . . . . . Construction Impeded . | . . . . . . Haulers Reinforced . | . . . . . . Active Scanning Responses . | . . . . . . Cargo Convoy Interrupts . | . . . . . . Stealth | -11 -10 -10 -9 -9 -9 --------- Run | Jun Mat Min Mat Min Exi Distress Signals 6 | . 5 . 1 . . Communications Jammed . | . . . . . . Distress Signals . | . . . . . . Times Spotted 115 | . 38 7 45 20 5 Peak Tracking Total 13 | . 5 3 5 13 7 Tactical Retreats 4 | . 3 1 . . . Traps | -11 -10 -10 -9 -9 -9 ------- Run | Jun Mat Min Mat Min Exi Traps Triggered 1 | . 1 . . . . Indirectly . | . . . . . . Trap Hack Attempts . | . . . . . . Triggered . | . . . . . . Disarmed . | . . . . . . Reprogrammed . | . . . . . . Reused 1 | . . . . . 1 Traps Extracted 4 | . . . . 4 . Installed 2 | . . . . . 2 Triggered . | . . . . . . Most Traps Carried 4 | . . . . 4 4 Machines | -11 -10 -10 -9 -9 -9 ---------- Run | Jun Mat Min Mat Min Exi Machines Disabled 3 | . . 2 . . 1 Max in Single Turn 1 | . . 1 . . 1 Machines Repaired . | . . . . . . Machines Sabotaged . | . . . . . . Overloaded Fab Kills . | . . . . . . Hacking | -11 -10 -10 -9 -9 -9 --------- Run | Jun Mat Min Mat Min Exi Machines Accessed 24 | . 8 . 16 . . Terminals 17 | . 5 . 12 . . Fabricators . | . . . . . . Repair Stations 2 | . 1 . 1 . . Recycling Units 3 | . 2 . 1 . . Scanalyzers 2 | . . . 2 . . Garrison Access . | . . . . . . Total Hacks 60 | . 20 . 40 . . Successful 29 | . 11 . 18 . . Failed 30 | . 9 . 21 . . Catastrophic 3 | . . . 3 . . Database Lockouts 1 | . . . 1 . . Manual 32 | . 15 . 17 . . Terminals 44 | . 16 . 28 . . Fabricators . | . . . . . . Repair Stations 4 | . 2 . 2 . . Recycling Units 5 | . 2 . 3 . . Scanalyzers 7 | . . . 7 . . Garrison Access . | . . . . . . Terminal Hacks 14 | . 7 . 7 . . Part Schematic 2 | . 1 . 1 . . Robot Schematic 1 | . 1 . . . . Robot Analysis 3 | . 2 . 1 . . Prototype ID Bank 1 | . . . 1 . . Alert Level 1 | . . . 1 . . Unreport Threat 2 | . . . 2 . . Locate Traps 2 | . 2 . . . . Hauler Manifests 2 | . 1 . 1 . . Fabricator Hacks . | . . . . . . Repair Station Hacks 2 | . 2 . . . . Scan Component 1 | . 1 . . . . Repair 1 | . 1 . . . . Recycling Unit Hacks . | . . . . . . Scanalyzer 6 | . . . 6 . . Insert Component 3 | . . . 3 . . Analyze 3 | . . . 3 . . Garrison Access Hacks . | . . . . . . Unauthorized Hacks 7 | . 2 . 5 . . Terminals 4 | . . . 4 . . Assimilate 1 | . . . 1 . . Botnet 2 | . . . 2 . . Operators 1 | . . . 1 . . Fabricators . | . . . . . . Repair Stations . | . . . . . . Recycling Units 3 | . 2 . 1 . . Tunnel 3 | . 2 . 1 . . Scanalyzers . | . . . . . . Garrison Access . | . . . . . . Data Cores Recovered 1 | . . . 1 . . Used . | . . . . . . Hacking Detections 19 | . 6 . 13 . . Full Trace Events 2 | . 1 . 1 . . Feedback Events . | . . . . . . Feedback Blocked . | . . . . . . Robot Schematics Acquired 1 | . 1 . . . . Robots Built . | . . . . . . Authchips . | . . . . . . Time . | . . . . . . Total Robot Build Rating . | . . . . . . Part Schematics Acquired 4 | . 1 . 3 . . Parts Built . | . . . . . . Authchips . | . . . . . . Time . | . . . . . . Total Part Build Rating . | . . . . . . Parts Repaired 1 | . 1 . . . . Time 26 | . 26 . . . . Parts Recycled . | . . . . . . Recycled Matter . | . . . . . . Retrieved Matter . | . . . . . . Retrieved Components . | . . . . . . Parts Scanalyzed 2 | . . . 2 . . Part Schematics Acquired 2 | . . . 2 . . Parts Damaged 1 | . . . 1 . . Bothacking | -11 -10 -10 -9 -9 -9 ------------ Run | Jun Mat Min Mat Min Exi Used RIF Installer . | . . . . . . Robots Hacked 3 | . . . . . 3 Non-combat 2 | . . . . . 2 Combat 1 | . . . . . 1 Robot Hacks Applied 3 | . . . . . 3 parse_system 3 | . . . . . 3 Relay Couplers Released . | . . . . . . Fabnet Peak Effective % . | . . . . . . Robots Rewired . | . . . . . . Allies Hacked . | . . . . . . Hacks Repelled . | . . . . . . Allies | -11 -10 -10 -9 -9 -9 -------- Run | Jun Mat Min Mat Min Exi Total Allies 5 | . . 2 1 2 . Largest Group 2 | . . 2 1 2 2 Highest-Rated Group 62 | . . 62 10 49 49 Highest-Rated Ally 31 | . . 31 10 31 31 Total Orders 2 | . . . 2 . . STAY 1 | . . . 1 . . FOLLOW 1 | . . . 1 . . Ally Attacks 10 | . . 10 . . . Total Damage 162 | . . 162 . . . Kills 2 | . . 2 . . . Allies Corrupted . | . . . . . . Allies Melted 1 | . . 1 . . . Intel | -11 -10 -10 -9 -9 -9 ------- Run | Jun Mat Min Mat Min Exi Robot Analysis Total 3 | . 2 . 1 . . Derelict Logs Recovered 4 | . . 2 . 2 . Drone Launches . | . . . . . . Drone Recoveries . | . . . . . . Exploration | -11 -10 -10 -9 -9 -9 ------------- Run | Jun Mat Min Mat Min Exi Turns Passed 8879 | 115 1748 1169 3527 1697 623 Spaces Moved 4031 | 47 841 664 1493 765 221 Core 3 | 3 . . . . . Treads 1320 | 44 841 430 . . 5 Legs . | . . . . . . Wheels 2708 | . . 234 1493 765 216 Hover . | . . . . . . Flight . | . . . . . . Fastest Speed 50 | 50 160 160 175 195 160 Average Speed 187 | 152 162 165 200 209 194 Slowest Speed 240 | 160 240 175 210 210 195 Overloaded Moves . | . . . . . . Propulsion Burnouts . | . . . . . . Robots Hopped . | . . . . . . Cave-ins Triggered . | . . . . . . Exploration Rate (%) 74 | 6 98 100 98 99 47 Regions Visited 5 Branch Regions 3 Pre-discovered Areas 3 | . 2 . 1 . . Known Exits Taken 1 | . . . . 1 . Unknown Exits Taken 4 | 1 1 1 1 . . Scrap Searched 3 | . . 1 . 2 . Spaces Dug 67 | . 10 10 8 38 1 Terrain Destroyed 218 | . 10 72 66 69 1 Melee 2 | . 1 . . . 1 Projectile . | . . . . . . AOE 216 | . 9 72 66 69 . Terrain Rammed . | . . . . . . Walls Destroyed . | . . . . . . Machines Disabled . | . . . . . . Actions | -11 -10 -10 -9 -9 -9 --------- Run | Jun Mat Min Mat Min Exi Total 4904 | 69 1091 711 1891 819 323 Wait 373 | . 131 7 209 9 17 Move 4026 | 46 840 663 1492 764 221 Hop . | . . . . . . Pick Up 68 | 5 15 3 36 3 6 Fast Attach 21 | 7 5 . 8 1 . Attach 23 | . 1 1 8 5 8 Detach 4 | . 2 . 2 . . Swap 69 | . 10 13 26 10 10 Drop 51 | . 12 1 33 1 4 Fire 242 | 11 73 12 76 26 44 Melee 5 | . 1 . . . 4 Ram 1 | . . . 1 . . Kick . | . . . . . . Crush 17 | . 1 9 . . 7 Escape Stasis . | . . . . . . Rewire 2 | . . 2 . . . Trap 2 | . . . . . 2 Miscellaneous . | . . . . . . Route ------- -11/Junkyard -10/Materials (discovered 4 exits: *Mat x3 / [*Min]) -10/Mines (discovered 2 exits: *Mat x2) -9/Materials (discovered 5 exits: [*Mat x3] / [*Min x2]) -9/Mines (discovered 3 exits: [*Mat x2] / *Exi) -9/Exiles History --------- Turn | Location | Event 21 | -11/Junkyard | Discovered new exit (range 16) 116 | -11/Junkyard | Entered Materials 181 | -10/Materials | Discovered new exit (range 14) 303 | -10/Materials | Build established: Mutant 784 | -10/Materials | Discovered new exit (range 3) 1104 | -10/Materials | Discovered new exit (range 3) 1562 | -10/Materials | Discovered new exit (range 15) 1602 | -10/Materials | Repaired Lgt. Treads? 1864 | -10/Materials | Entered Mines 2031 | -10/Mines | Discovered new exit (range 8) 2059 | -10/Mines | Learned Materials trap positions 2076 | -10/Mines | Escorted by a lone wolf Derelict 2178 | -10/Mines | Received a Mining Laser from a helpful Derelict 2515 | -10/Mines | Discovered new exit (range 15) 2883 | -10/Mines | Learned Materials trap positions 3033 | -10/Mines | Entered Materials 3033 | -9/Materials | Evolved 2 slots: Propulsion x1, Utility x1 3034 | -9/Materials | Loaded intel: 11 trap records 3619 | -9/Materials | Discovered new exit (range 16) 3793 | -9/Materials | Discovered new exit (range 15) 4045 | -9/Materials | Discovered new exit (range 12) 4471 | -9/Materials | Lost 4 parts (1p1n2u) 4636 | -9/Materials | Discovered new exit (range 3) 4907 | -9/Materials | Central database locked down 5331 | -9/Materials | Discovered new exit (range 14) 6560 | -9/Materials | Entered Mines 6560 | -9/Mines | Accompanied by 1 ally 6561 | -9/Mines | Assembled infested the area 6620 | -9/Mines | Destroyed 24 combat bots 6650 | -9/Mines | Identified exit to Exiles 6654 | -9/Mines | Met a Derelict bent on vengeance 6654 | -9/Mines | Lost 5 parts (1p2n1u1w) 6810 | -9/Mines | Found a hidden stash of uninstalled traps 6835 | -9/Mines | Discovered new exit (range 14) 6885 | -9/Mines | Learned Materials interactive machine intel 7214 | -9/Mines | Discovered new exit (range 11) 7271 | -9/Mines | A weapon hastily lodged in a ceiling crevice suddenly fell to the ground 8242 | -9/Mines | Deemed a non-threat by the Exiles lab entrance 8257 | -9/Mines | Entered Exiles 8257 | -9/Exiles | Accompanied by 2 allies 8287 | -9/Exiles | Led the pair of lost Derelicts to a safe place 8406 | -9/Exiles | Met 8R-AWN 8438 | -9/Exiles | Met EX-HEX 8460 | -9/Exiles | Warned about trapping Exiles lab 8615 | -9/Exiles | Met EX-DEC 8692 | -9/Exiles | Attacked by the Exiles 8758 | -9/Exiles | Core integrity fell below 50% 8834 | -9/Exiles | Core integrity fell below 20% 8880 | -9/Exiles | Destroyed by 8R-AWN with 8R-AWN's Boregun Last Messages --------------- 08800_ HV Slug penetrates Machine. 08804_ Penetrated by HV Slug. 08804_ HV Slug penetrates Machine. 08804_ HV Slug penetrates Wall. 08806_ Destroyed 8R-AWN's Armor/TH. 08808_ Penetrated by HV Slug. 08820_ Deuterium Engine destroyed. 08825_ Penetrated by HV Slug. 08829_ Lgt. Treads destroyed. 08833_ Penetrated by HV Slug. 08846_ Hvy. Assault Rifle destroyed. 08846_ Penetrated by HV Slug. 08859_ Critical hit (Destroy). 08859_ Hvy. Assault Rifle destroyed. 08863_ HV Slug penetrates Wall. 08863_ HV Slug penetrates Machine. 08867_ Penetrated by HV Slug. 08876_ Critical hit (Destroy). 08876_ Hvy. Assault Rifle destroyed. 08876_ Penetrated by HV Slug. Map ----- +----------------------------------------------------+ | ?????????????????????????????????????????????????? | | ?????????????????????????????????????????????????? | | ?????????????????????????????????????????????????? | | ?????????????????????????????????????????????????? | | ?????????????????????????????????????????????????? | | ?????????????????????????????????????????????????? | | ?????????????????????????????????????????????????? | | ?????????????????????????????????????????????????? | | ?????????????????????????????????????????????????? | | ?????????????????????????????????????????????????? | | ?" ??????????????????????????????????????????????? | | ?" ????????????? ????????????????????????????? | | "" ????????????? ??????????????????????????? | | "" ????????????" ??????????????????????????? | | "??????????#" ???????????????????????????? | | ?" "??????????#" #???????????????????????????? | | ?# #?????????#"" #???????????????????????????? | | ## ###?######"" #???????????????????????????? | | X# #"###""""""" ##??????????????????????????? | | """""" " "" ##???###########???????????? | | "" """ " #####"""""""""##??????????? | | " " " """ """"##?????????? | | " " #?????????? | | " """#?????????? | | g "a"#?????????? | | ]!= @ " "##????????? | | ^[!! ""###??????? | | "" "" !]]% """#??????# | | ###### "#????### | | ""##????#;#=;" ##???# | | """##?????#?# #; ##?## | | """##???????# ##; " ### | | ""#???????# #?##"" | | ######### #### """ | | ## #;##""" " | | """" #""" | | ##### | | ##???? | | " ##????? | | " "" " % ^ ""#?????? | | ""## ##""" " " ""# "##?????? | | ""#### ######""" """##"""""""##??????? | | """"##??# #????###""""###########???????? | | """#??## ####???######?????????????????? | | ""##??#! "!#??????????????????????????? | | """##???#" #??????????????????????????? | | ##????#" "#??????????????????????????? | | " ##?????#!!"" "#??????????????????????????? | | #??????########??????????????????????????? | | ### ##????????????????????????????????????????? | +----------------------------------------------------+ Best States ------------- Heat Dissipation 28 Energy Generation 14 Energy Capacity 275 Matter Stores 300 Matter Capacity 500 Sight Range 16 Terrain Scan Density 10 Armor Coverage 225 Propulsion Shielding 33 Evasion (%) 40 Targeting Accuracy 6 Recoil Reduction 3 Trap Extractor Capacity 4 Item Schematics ----------------- Huge Storage Unit | -10/Materials | Hacked Plasma Cutter | -9/Materials | Hacked Transport Network Coupler | -9/Materials | Scanalyzed Seismic Detector | -9/Materials | Scanalyzed Robot Schematics ------------------ M-13 Machinist | -10/Materials | Hacked Fabricated ------------ Nothing Alien Tech Used ----------------- None Achievements -------------- None Challenges ------------ None Game ------ Seed RocketStorageCapacitor Manual? 0 Play Time 00:52:06 Cumulative 399.9 hours Start 2023.03.04 @ 21:47:03 End 2023.03.05 @ 07:46:21 Sessions 3 Manual Loads 0 Difficulty Rogue Special Mode None Game No. 174 Rogue 174 Adventurer 0 Explorer 0 Win Type - Total 9 Types 6/0/1/1/0/0/0/1/0 Lore% 89 Gallery% 92 Achievement% 71 Wizard Run 0 Options --------- ASCII 1 Keyboard 1 Movement Vi Keybinds 0 Fullscreen 2 Font 18/Cog Map View 76x50 Tactical HUD 1 Map Filters NONE Filters NONE Steam 0 RUN: aabf8ae4-480f-40ed-b774-d502ec247ff8